fUST/lending_fUST_20240906
["ID","MTS","AMOUNT","RATE_DAILY","PERIOD"]
[337311113,1725593462826,-12734.97,0.00021716,2]
[337311114,1725593462836,-2670.35,0.00021716,2]
[337311115,1725593462845,-2272.45,0.00021716,2]
[337311116,1725593462855,-550.57,0.00021716,2]
[337311117,1725593462863,-1764.86,0.00021716,2]
[337311118,1725593462873,-1698.33,0.00021716,2]
[337311119,1725593462883,-500.0,0.00021716,2]
[337311120,1725593462892,-500.0,0.00021716,2]
[337311121,1725593462901,-3979.67,0.00021716,2]
[337311122,1725593462911,-523.22728731,0.00021716,2]
[337311123,1725593462920,-2381.91,0.00021716,2]
[337311124,1725593462930,-2933.35,0.00021716,2]
[337311125,1725593462939,-1314.22,0.00021716,2]
[337311126,1725593462948,-753.41,0.00021716,2]
[337311127,1725593462957,-10717.05,0.00021716,2]
[337311128,1725593462966,-572.53,0.00021716,2]
[337311129,1725593462975,-888.48,0.00021716,2]
[337311130,1725593462984,-1177.07,0.00021716,2]
[337311131,1725593462995,-1252.65,0.00021716,2]
[337311132,1725593463004,-852.67,0.00021716,2]
[337311133,1725593463014,-5146.8,0.00021716,2]
[337311134,1725593463024,-500.0,0.00021716,2]
[337311135,1725593463035,-1996.99,0.00021716,2]
[337311136,1725593463045,-500.0,0.00021716,2]
[337311137,1725593463054,-664.99,0.00021716,2]
[337311138,1725593463064,-500.0,0.00021716,2]
[337311139,1725593463074,-15307.58,0.00021716,2]
[337311140,1725593463084,-2269.72,0.00021716,2]
[337311141,1725593463095,-500.0,0.00021716,2]
[337311142,1725593463106,-1213.59,0.00021716,2]
[337311143,1725593463116,-2344.78,0.00021716,2]
[337311144,1725593463127,-552.35,0.00021716,2]
[337311145,1725593463136,-659.16,0.00021716,2]
[337311146,1725593463146,-504.42,0.00021716,2]
[337311147,1725593463156,-500.0,0.00021716,2]
[337311148,1725593463167,-1321.4,0.00021716,2]
[337311149,1725593463177,-2904.94,0.00021716,2]
[337311150,1725593463187,-500.0,0.00021716,2]
[337311151,1725593463197,-2679.31,0.00021716,2]
[337311152,1725593463207,-500.0,0.00021716,2]
[337311153,1725593463218,-500.0,0.00021716,2]
[337311154,1725593463229,-3747.51,0.00021716,2]
[337311155,1725593463239,-1683.72,0.00021716,2]
[337311156,1725593463330,-2918.83,0.00021716,2]
[337311157,1725593463340,-1813.24,0.00021716,2]
[337311158,1725593463350,-771.77,0.00021716,2]
[337311159,1725593463360,-500.0,0.00021716,2]
[337311160,1725593463370,-500.0,0.00021716,2]
[337311161,1725593463380,-497.17486332,0.00021716,2]
[337311162,1725593463393,-500.0,0.00021716,2]
[337311163,1725593463403,-500.0,0.00021716,2]
[337311164,1725593463413,-1831.36,0.00021716,2]
[337311165,1725593463423,-500.0,0.00021716,2]
[337311166,1725593463432,-865.69943136,0.00021721,2]
[337311167,1725593463441,-1000.0,0.00021721,2]
[337311168,1725593463451,-1000.0,0.00021721,2]
[337311169,1725593463461,-500.0,0.00021734,2]
[337311170,1725593463471,-876.54,0.00021734,2]
[337311171,1725593463480,-596.98,0.00021734,2]
[337311172,1725593463489,-500.0,0.00021734,2]
[337311173,1725593463500,-1004.06,0.00021734,2]
[337311174,1725593463510,-500.0,0.00021734,2]
[337311175,1725593463520,-542.68,0.00021734,2]
[337311176,1725593463529,-500.0,0.00021734,2]
[337311177,1725593463539,-500.0,0.00021734,2]
[337311178,1725593463548,-1328.23,0.00021734,2]
[337311179,1725593463559,-500.0,0.00021734,2]
[337311180,1725593463569,-500.0,0.00021734,2]
[337311181,1725593463578,-500.0,0.00021734,2]
[337311182,1725593463588,-615.68,0.00021734,2]
[337311183,1725593463598,-863.59,0.00021734,2]
[337311184,1725593463607,-500.0,0.00021734,2]
[337311185,1725593463618,-526.62,0.00021734,2]
[337311186,1725593463627,-500.0,0.00021734,2]
[337311187,1725593463638,-1059.43,0.00021734,2]
[337311188,1725593463647,-500.0,0.00021734,2]
[337311189,1725593463656,-500.0,0.00021734,2]
[337311190,1725593463666,-500.0,0.00021734,2]
[337311191,1725593463675,-500.0,0.00021734,2]
[337311192,1725593463684,-500.0,0.00021734,2]
[337311193,1725593463693,-500.0,0.00021734,2]
[337311194,1725593463703,-500.0,0.00021734,2]
[337311195,1725593463713,-500.0,0.00021734,2]
[337311196,1725593463722,-1281.9,0.00021734,2]
[337311197,1725593463732,-500.0,0.00021734,2]
[337311198,1725593463742,-500.0,0.00021734,2]
[337311199,1725593463752,-578.93,0.00021734,2]
[337311200,1725593463761,-670.95,0.00021734,2]
[337311201,1725593463770,-2461.39,0.00021734,2]
[337311202,1725593463780,-500.0,0.00021734,2]
[337311203,1725593463789,-500.0,0.00021734,2]
[337311204,1725593463799,-500.0,0.00021734,2]
[337311205,1725593463808,-1874.78,0.00021734,2]
[337311206,1725593463817,-973.18,0.00021734,2]
[337311207,1725593463827,-500.0,0.00021734,2]
[337311208,1725593463836,-1577.08,0.00021734,2]
[337311209,1725593463846,-500.0,0.00021734,2]
[337311210,1725593463856,-504.64397169,0.00021734,2]
[337311211,1725593463866,-500.0,0.00021734,2]
[337311212,1725593463875,-500.0,0.00021734,2]
[337311213,1725593463886,-500.0,0.00021734,2]
[337311214,1725593463896,-638.04,0.00021734,2]
[337311215,1725593463905,-500.0,0.00021734,2]
[337311216,1725593463916,-690.77,0.00021734,2]
[337311217,1725593463926,-500.0,0.00021734,2]
[337311218,1725593463936,-500.0,0.00021734,2]
[337311219,1725593463946,-500.0,0.00021734,2]
[337311220,1725593463955,-2150.55,0.00021734,2]
[337311221,1725593463965,-500.0,0.00021734,2]
[337311222,1725593463975,-2199.22,0.00021734,2]
[337311223,1725593463984,-1666.75,0.00021734,2]
[337311224,1725593463995,-3102.05,0.00021734,2]
[337311225,1725593464012,-500.0,0.00021734,2]
[337311226,1725593464022,-12189.54,0.00021734,2]
[337311227,1725593464032,-500.0,0.00021734,2]
[337311228,1725593464042,-500.0,0.00021734,2]
[337311229,1725593464052,-1450.49,0.00021734,2]
[337311230,1725593464062,-2127.99,0.00021734,2]
[337311231,1725593464071,-500.0,0.00021734,2]
[337311232,1725593464081,-500.0,0.00021734,2]
[337311233,1725593464091,-500.0,0.00021734,2]
[337311234,1725593464101,-500.0,0.00021734,2]
[337311235,1725593464110,-500.0,0.00021734,2]
[337311236,1725593464120,-1010.3,0.00021734,2]
[337311237,1725593464130,-672.49,0.00021734,2]
[337311238,1725593464140,-500.0,0.00021734,2]
[337311239,1725593464150,-500.0,0.00021734,2]
[337311240,1725593464160,-1117.75,0.00021734,2]
[337311241,1725593464170,-917.61,0.00021734,2]
[337311242,1725593464179,-500.0,0.00021734,2]
[337311243,1725593464189,-655.17,0.00021734,2]
[337311244,1725593464199,-500.0,0.00021734,2]
[337311245,1725593464209,-891.96,0.00021734,2]
[337311246,1725593464219,-500.0,0.00021734,2]
[337311247,1725593464229,-500.0,0.00021734,2]
[337311248,1725593464238,-929.52,0.00021734,2]
[337311249,1725593464249,-3772.49,0.00021734,2]
[337311250,1725593464259,-595.04,0.00021734,2]
[337311251,1725593464269,-25483.24,0.00021734,2]
[337311252,1725593464279,-493.3910267,0.00021734,2]
[337311253,1725593464288,-500.0,0.00021734,2]
[337311254,1725593464299,-500.0,0.00021734,2]
[337311255,1725593464311,-500.0,0.00021734,2]
[337311256,1725593464320,-500.0,0.00021734,2]
[337311257,1725593464331,-500.0,0.00021734,2]
[337311258,1725593464341,-500.0,0.00021734,2]
[337311259,1725593464351,-500.0,0.00021734,2]
[337311260,1725593464360,-500.0,0.00021734,2]
[337311261,1725593464370,-537.94,0.00021735,2]
[337311262,1725593464381,-500.0,0.00021735,2]
[337311263,1725593464394,-500.0,0.00021735,2]
[337311264,1725593464404,-500.0,0.00021735,2]
[337311265,1725593464415,-160.38200216,0.00021735,2]
[337311266,1725593464427,-1853.75,0.00021735,2]
[337311267,1725593464438,-500.0,0.00021735,2]
[337311268,1725593464448,-500.0,0.00021735,2]
[337311269,1725593464457,-686.4,0.00021735,2]
[337311270,1725593464468,-243.9685036,0.00021735,2]
[337311271,1725593464477,-500.0,0.00021735,2]
[337311272,1725593464487,-500.0,0.00021735,2]
[337311273,1725593464497,-546.92,0.00021735,2]
[337311274,1725593464507,-500.0,0.00021735,2]
[337311275,1725593464517,-500.0,0.00021735,2]
[337311276,1725593464527,-500.0,0.00021735,2]
[337311277,1725593464538,-500.0,0.00021735,2]
[337311278,1725593464548,-500.38817659,0.00021735,2]
[337311279,1725593464559,-500.0,0.00021735,2]
[337311280,1725593464568,-500.0,0.00021735,2]
[337311281,1725593464578,-500.0,0.00021735,2]
[337311282,1725593464588,-656.95,0.00021735,2]
[337311283,1725593464599,-500.0,0.00021735,2]
[337311284,1725593464609,-500.0,0.00021735,2]
[337311285,1725593464620,-500.0,0.00021735,2]
[337311286,1725593464631,-562.65263059,0.00021735,2]
[337311287,1725593464641,-500.0,0.00021735,2]
[337311288,1725593464653,-500.0,0.00021735,2]
[337311289,1725593464664,-500.0,0.00021735,2]
[337311290,1725593464675,-500.0,0.00021735,2]
[337311291,1725593464686,-500.0,0.00021735,2]
[337311292,1725593464697,-500.0,0.00021735,2]
[337311293,1725593464708,-500.0,0.00021735,2]
[337311294,1725593464719,-500.0,0.00021735,2]
[337311295,1725593464729,-500.0,0.00021735,2]
[337311296,1725593464739,-500.0,0.00021735,2]
[337311297,1725593464751,-500.0,0.00021735,2]
[337311298,1725593464762,-500.0,0.00021735,2]
[337311299,1725593464772,-500.0,0.00021735,2]
[337311300,1725593464781,-500.0,0.00021735,2]
[337311301,1725593464791,-500.0,0.00021735,2]
[337311302,1725593464801,-500.0,0.00021735,2]
[337311303,1725593464884,-500.0,0.00021735,2]
[337311304,1725593464894,-500.0,0.00021735,2]
[337311305,1725593464906,-500.0,0.00021735,2]
[337311306,1725593464916,-523.27859168,0.00021735,2]
[337311307,1725593464927,-500.0,0.00021735,2]
[337311308,1725593464938,-500.0,0.00021735,2]
[337311309,1725593464950,-500.0,0.00021735,2]
[337311310,1725593464960,-500.0,0.00021735,2]
[337311311,1725593464969,-516.72067447,0.00021735,2]
[337311312,1725593464979,-500.0,0.00021735,2]
[337311313,1725593464988,-500.0,0.00021735,2]
[337311314,1725593464998,-312.86770344,0.00021735,2]
[337311315,1725593465009,-500.0,0.00021735,2]
[337311316,1725593465021,-500.0,0.00021735,2]
[337311317,1725593465032,-701.01,0.00021735,2]
[337311318,1725593465041,-500.0,0.00021735,2]
[337311319,1725593465052,-500.0,0.00021735,2]
[337311320,1725593465061,-500.0,0.00021735,2]
[337311321,1725593465071,-500.0,0.00021735,2]
[337311322,1725593465081,-500.0,0.00021735,2]
[337311323,1725593465090,-500.0,0.00021735,2]
[337311324,1725593465099,-500.0,0.00021735,2]
[337311325,1725593465109,-203.28961313,0.00021735,2]
[337311326,1725593465118,-500.0,0.00021735,2]
[337311327,1725593465127,-505.7,0.00021735,2]
[337311328,1725593465137,-500.0,0.00021735,2]
[337311329,1725593465146,-500.0,0.00021735,2]
[337311330,1725593465155,-1058.56,0.00021735,2]
[337311331,1725593465165,-500.0,0.00021735,2]
[337311332,1725593465175,-500.0,0.00021735,2]
[337311333,1725593465184,-286.7430708,0.00021735,2]
[337311334,1725593465194,-500.0,0.00021735,2]
[337311335,1725593465205,-500.0,0.00021735,2]
[337311336,1725593465214,-500.0,0.00021735,2]
[337311337,1725593465224,-500.0,0.00021735,2]
[337311338,1725593465234,-399.53316071,0.00021735,2]
[337311339,1725593465243,-500.0,0.00021735,2]
[337311340,1725593465253,-500.0,0.00021735,2]
[337311341,1725593465263,-500.0,0.00021735,2]
[337311342,1725593465273,-500.0,0.00021735,2]
[337311343,1725593465283,-500.0,0.00021735,2]
[337311344,1725593465293,-500.0,0.00021735,2]
[337311345,1725593465302,-500.0,0.00021735,2]
[337311346,1725593465312,-500.0,0.00021735,2]
[337311347,1725593465321,-500.0,0.00021735,2]
[337311348,1725593465331,-500.0,0.00021735,2]
[337311349,1725593465341,-500.0,0.00021735,2]
[337311350,1725593465351,-500.0,0.00021735,2]
[337311351,1725593465360,-500.0,0.00021735,2]
[337311352,1725593465370,-500.0,0.00021735,2]
[337311353,1725593465380,-636.39,0.00021735,2]
[337311354,1725593465394,-500.0,0.00021735,2]
[337311355,1725593465405,-1466.92,0.00021735,2]
[337311356,1725593465415,-500.0,0.00021735,2]
[337311357,1725593465427,-1269.22,0.00021735,2]
[337311358,1725593465437,-612.19,0.00021735,2]
[337311359,1725593465447,-500.0,0.00021736,2]
[337311360,1725593465457,-1805.39,0.00021736,2]
[337311361,1725593465467,-697.15,0.00021736,2]
[337311362,1725593465477,-987.68,0.00021736,2]
[337311363,1725593465486,-500.0,0.00021736,2]
[337311364,1725593465496,-500.0,0.00021736,2]
[337311365,1725593465506,-500.0,0.00021736,2]
[337311366,1725593465516,-988.36,0.00021736,2]
[337311367,1725593465525,-533.6352618,0.00021736,2]
[337311368,1725593465535,-2185.26,0.00021736,2]
[337311369,1725593465544,-1090.33,0.00021736,2]
[337311370,1725593465555,-505.6175626,0.00021736,2]
[337311371,1725593465564,-1116.36,0.00021736,2]
[337311372,1725593465574,-739.19,0.00021736,2]
[337311373,1725593465584,-500.0,0.00021736,2]
[337311374,1725593465593,-2474.64,0.00021736,2]
[337311375,1725593465603,-500.0,0.00021736,2]
[337311376,1725593465613,-500.0,0.00021736,2]
[337311377,1725593465622,-500.0,0.00021736,2]
[337311378,1725593465631,-500.0,0.00021736,2]
[337311379,1725593465641,-604.96,0.00021736,2]
[337311380,1725593465650,-500.0,0.00021736,2]
[337311381,1725593465660,-500.0,0.00021736,2]
[337311382,1725593465669,-500.0,0.00021736,2]
[337311383,1725593465679,-774.78,0.00021736,2]
[337311384,1725593465688,-1364.58,0.00021736,2]
[337311385,1725593465697,-500.0,0.00021736,2]
[337311386,1725593465707,-500.0,0.00021736,2]
[337311387,1725593465716,-500.0,0.00021736,2]
[337311388,1725593465727,-500.0,0.00021736,2]
[337311389,1725593465738,-500.0,0.00021736,2]
[337311390,1725593465749,-500.0,0.00021736,2]
[337311391,1725593465758,-751.48,0.00021736,2]
[337311392,1725593465767,-500.0,0.00021736,2]
[337311393,1725593465778,-428.15569165,0.00021736,2]
[337311394,1725593465787,-1510.68,0.00021736,2]
[337311395,1725593465797,-704.01,0.00021736,2]
[337311396,1725593465807,-836.44,0.00021736,2]
[337311397,1725593465817,-500.0,0.00021736,2]
[337311398,1725593465826,-1159.42,0.00021736,2]
[337311399,1725593465836,-500.0,0.00021736,2]
[337311400,1725593465845,-768.94,0.00021736,2]
[337311401,1725593465855,-500.0,0.00021736,2]
[337311402,1725593465865,-500.0,0.00021736,2]
[337311403,1725593465875,-500.0,0.00021736,2]
[337311404,1725593465885,-500.0,0.00021736,2]
[337311405,1725593465895,-3790.5,0.00021736,2]
[337311406,1725593465904,-500.0,0.00021736,2]
[337311407,1725593465914,-500.0,0.00021736,2]
[337311408,1725593465924,-500.0,0.00021758,2]
[337311409,1725593465934,-608.37,0.00021758,2]
[337311410,1725593465944,-500.0,0.00021758,2]
[337311411,1725593465954,-825.57,0.00021758,2]
[337311412,1725593465964,-421.37385268,0.00021758,2]
[337311413,1725593465974,-500.0,0.00021758,2]
[337311414,1725593465983,-500.0,0.00021758,2]
[337311415,1725593465993,-500.0,0.00021758,2]
[337311416,1725593466002,-428.76316622,0.00021758,2]
[337311417,1725593466012,-500.0,0.00021758,2]
[337311418,1725593466022,-500.0,0.00021758,2]
[337311419,1725593466032,-500.0,0.00021758,2]
[337311420,1725593466042,-507.47667904,0.00021758,2]
[337311421,1725593466052,-578.77,0.00021758,2]
[337311422,1725593466062,-503.76363957,0.00021758,2]
[337311423,1725593466073,-418.7473312,0.00021781,2]
[337311424,1725593466084,-1000.0,0.00021917,2]
[337311425,1725593466095,-1000.0,0.00021917,2]
[337311426,1725593466105,-1000.0,0.00021917,2]
[337311427,1725593466116,-1000.0,0.00021917,2]
[337311428,1725593466126,-1000.0,0.00021917,2]
[337311429,1725593466137,-506.6323495,0.00021917,2]
[337311430,1725593466146,-325.09267607,0.00021917,2]
[337311431,1725593466155,-500.0,0.00021917,2]
[337311432,1725593466165,-535.67360744,0.00021917,2]
[337311433,1725593466175,-500.0,0.00021918,2]
[337311434,1725593466184,-500.0,0.00021918,2]
[337311435,1725593466193,-500.0,0.00021918,2]
[337311436,1725593466203,-500.0,0.00021918,2]
[337311437,1725593466213,-500.0,0.00021918,2]
[337311438,1725593466285,-500.0,0.00021918,2]
[337311439,1725593466301,-500.0,0.00021918,2]
[337311440,1725593466312,-500.0,0.00021918,2]
[337311441,1725593466323,-500.0,0.00021918,2]
[337311442,1725593466334,-389.91382757,0.00021918,2]
[337311443,1725593466344,-500.0,0.00021918,2]
[337311444,1725593466356,-500.0,0.00021918,2]
[337311445,1725593466365,-500.0,0.00021918,2]
[337311446,1725593466374,-500.0,0.00021918,2]
[337311447,1725593466387,-500.0,0.00021918,2]
[337311448,1725593466397,-500.0,0.00021918,2]
[337311449,1725593466407,-500.0,0.00021918,2]
[337311450,1725593466418,-500.0,0.00021918,2]
[337311451,1725593466429,-500.0,0.00021918,2]
[337311452,1725593466439,-500.0,0.00021918,2]
[337311453,1725593466449,-500.0,0.00021918,2]
[337311454,1725593466460,-500.0,0.00021918,2]
[337311455,1725593466470,-500.0,0.00021918,2]
[337311456,1725593466480,-500.0,0.00021918,2]
[337311457,1725593466489,-500.0,0.00021918,2]
[337311458,1725593466499,-500.0,0.00021918,2]
[337311459,1725593466508,-500.0,0.00021918,2]
[337311460,1725593466518,-494.2711319,0.00021918,2]
[337311461,1725593466528,-500.0,0.00021918,2]
[337311462,1725593466538,-500.0,0.00021918,2]
[337311463,1725593466547,-500.0,0.00021918,2]
[337311464,1725593466557,-500.0,0.00021918,2]
[337311465,1725593466566,-500.0,0.00021918,2]
[337311466,1725593466576,-500.0,0.00021918,2]
[337311467,1725593466586,-860.04,0.00021971,3]
[337311468,1725593466595,-430.02,0.00021971,3]
[337311469,1725593466605,-2172.16,0.0002199,2]
[337311470,1725593466614,-2026.03,0.0002199,2]
[337311471,1725593466623,-500.0,0.0002199,2]
[337311472,1725593466632,-1752.14,0.0002199,2]
[337311473,1725593466642,-500.0,0.0002199,2]
[337311474,1725593466652,-12734.97,0.0002199,2]
[337311475,1725593466661,-2670.35,0.0002199,2]
[337311476,1725593466671,-2272.45,0.0002199,2]
[337311477,1725593466681,-550.57,0.0002199,2]
[337311478,1725593466690,-1764.86,0.0002199,2]
[337311479,1725593466699,-1698.33,0.0002199,2]
[337311480,1725593466708,-500.0,0.0002199,2]
[337311481,1725593466718,-500.0,0.0002199,2]
[337311482,1725593466728,-3979.67,0.0002199,2]
[337311483,1725593466737,-2381.91,0.0002199,2]
[337311484,1725593466750,-2933.35,0.0002199,2]
[337311485,1725593466763,-1314.22,0.0002199,2]
[337311486,1725593466774,-753.41,0.0002199,2]
[337311487,1725593466784,-10717.05,0.0002199,2]
[337311488,1725593466794,-572.53,0.0002199,2]
[337311489,1725593466805,-888.48,0.0002199,2]
[337311490,1725593466815,-1177.07,0.0002199,2]
[337311491,1725593466825,-1252.65,0.0002199,2]
[337311492,1725593466835,-852.67,0.0002199,2]
[337311493,1725593466846,-5146.8,0.0002199,2]
[337311494,1725593466856,-500.0,0.0002199,2]
[337311495,1725593466866,-1996.99,0.0002199,2]
[337311496,1725593466875,-500.0,0.0002199,2]
[337311497,1725593466886,-664.99,0.0002199,2]
[337311498,1725593466896,-500.0,0.0002199,2]
[337311499,1725593466907,-15307.58,0.0002199,2]
[337311500,1725593466918,-2269.72,0.0002199,2]
[337311501,1725593466929,-500.0,0.0002199,2]
[337311502,1725593466938,-1213.59,0.0002199,2]
[337311503,1725593466947,-2344.78,0.0002199,2]
[337311504,1725593466957,-552.35,0.0002199,2]
[337311505,1725593466966,-659.16,0.0002199,2]
[337311506,1725593466975,-504.42,0.0002199,2]
[337311507,1725593466984,-500.0,0.0002199,2]
[337311508,1725593466994,-1321.4,0.0002199,2]
[337311509,1725593467004,-2904.94,0.0002199,2]
[337311510,1725593467014,-500.0,0.0002199,2]
[337311511,1725593467023,-2679.31,0.0002199,2]
[337311512,1725593467034,-500.0,0.0002199,2]
[337311513,1725593467043,-292.76693681,0.0002199,2]
[337311514,1725593467053,-3747.51,0.0002199,2]
[337311515,1725593467064,-1683.72,0.0002199,2]
[337311516,1725593467074,-2918.83,0.0002199,2]
[337311517,1725593467084,-1813.24,0.0002199,2]
[337311518,1725593467093,-771.77,0.0002199,2]
[337311519,1725593467102,-500.0,0.0002199,2]
[337311520,1725593467113,-500.0,0.0002199,2]
[337311521,1725593467125,-500.0,0.0002199,2]
[337311522,1725593467137,-1831.36,0.0002199,2]
[337311523,1725593467148,-500.0,0.0002199,2]
[337311524,1725593467158,-500.0,0.0002199,2]
[337311525,1725593467168,-302.36509981,0.00022,2]
[337311526,1725593467177,-1011.55447649,0.00022,2]
[337311527,1725593467187,-364.0,0.00022,2]
[337311528,1725593467197,-500.0,0.00022008,2]
[337311529,1725593467206,-876.54,0.00022008,2]
[337311530,1725593467215,-596.98,0.00022008,2]
[337311531,1725593467226,-500.0,0.00022008,2]
[337311532,1725593467237,-1004.06,0.00022008,2]
[337311533,1725593467250,-500.0,0.00022008,2]
[337311534,1725593467262,-542.68,0.00022008,2]
[337311535,1725593467272,-500.0,0.00022008,2]
[337311536,1725593467283,-500.0,0.00022008,2]
[337311537,1725593467293,-1328.23,0.00022008,2]
[337311538,1725593467302,-522.57029463,0.00022008,2]
[337311539,1725593467313,-500.0,0.00022008,2]
[337311540,1725593467322,-500.0,0.00022008,2]
[337311541,1725593467335,-615.68,0.00022008,2]
[337311542,1725593467345,-863.59,0.00022008,2]
[337311543,1725593467357,-500.0,0.00022008,2]
[337311544,1725593467367,-526.62,0.00022008,2]
[337311545,1725593467377,-500.0,0.00022008,2]
[337311546,1725593467393,-1059.43,0.00022008,2]
[337311547,1725593467403,-500.0,0.00022008,2]
[337311548,1725593467414,-500.0,0.00022008,2]
[337311549,1725593467425,-487.15877517,0.00022008,2]
[337311550,1725593467437,-500.0,0.00022008,2]
[337311551,1725593467447,-500.0,0.00022008,2]
[337311552,1725593467459,-500.0,0.00022008,2]
[337311553,1725593467468,-500.0,0.00022008,2]
[337311554,1725593467478,-500.0,0.00022008,2]
[337311555,1725593467488,-1281.9,0.00022008,2]
[337311556,1725593467499,-500.0,0.00022008,2]
[337311557,1725593467510,-500.0,0.00022008,2]
[337311558,1725593467521,-578.93,0.00022008,2]
[337311559,1725593467534,-670.95,0.00022008,2]
[337311560,1725593467545,-2461.39,0.00022008,2]
[337311561,1725593467555,-510.76881845,0.00022008,2]
[337311562,1725593467566,-500.0,0.00022008,2]
[337311563,1725593467646,-500.0,0.00022008,2]
[337311564,1725593467657,-1874.78,0.00022008,2]
[337311565,1725593467667,-973.18,0.00022008,2]
[337311566,1725593467676,-527.85204159,0.00022008,2]
[337311567,1725593467685,-1577.08,0.00022008,2]
[337311568,1725593467695,-500.0,0.00022008,2]
[337311569,1725593467705,-500.0,0.00022008,2]
[337311570,1725593467716,-500.0,0.00022008,2]
[337311571,1725593467726,-500.0,0.00022008,2]
[337311572,1725593467735,-638.04,0.00022008,2]
[337311573,1725593467746,-500.0,0.00022008,2]
[337311574,1725593467755,-690.77,0.00022008,2]
[337311575,1725593467766,-500.0,0.00022008,2]
[337311576,1725593467775,-500.0,0.00022008,2]
[337311577,1725593467785,-500.0,0.00022008,2]
[337311578,1725593467795,-2150.55,0.00022008,2]
[337311579,1725593467805,-500.0,0.00022008,2]
[337311580,1725593467815,-2199.22,0.00022008,2]
[337311581,1725593467824,-1666.75,0.00022008,2]
[337311582,1725593467833,-3102.05,0.00022008,2]
[337311583,1725593467842,-500.0,0.00022008,2]
[337311584,1725593467852,-12189.54,0.00022008,2]
[337311585,1725593467863,-500.0,0.00022008,2]
[337311586,1725593467872,-500.0,0.00022008,2]
[337311587,1725593467882,-1450.49,0.00022008,2]
[337311588,1725593467893,-2127.99,0.00022008,2]
[337311589,1725593467903,-500.0,0.00022008,2]
[337311590,1725593467915,-500.0,0.00022008,2]
[337311591,1725593467926,-500.0,0.00022008,2]
[337311592,1725593467937,-500.0,0.00022008,2]
[337311593,1725593467947,-500.0,0.00022008,2]
[337311594,1725593467957,-1010.3,0.00022008,2]
[337311595,1725593467968,-672.49,0.00022008,2]
[337311596,1725593467979,-500.0,0.00022008,2]
[337311597,1725593467990,-577.75678313,0.00022008,2]
[337311598,1725593468004,-1117.75,0.00022008,2]
[337311599,1725593468015,-917.61,0.00022008,2]
[337311600,1725593468026,-500.0,0.00022008,2]
[337311601,1725593468038,-655.17,0.00022008,2]
[337311602,1725593468049,-500.0,0.00022008,2]
[337311603,1725593468058,-891.96,0.00022008,2]
[337311604,1725593468069,-500.0,0.00022008,2]
[337311605,1725593468078,-500.0,0.00022008,2]
[337311606,1725593468088,-929.52,0.00022008,2]
[337311607,1725593468097,-3772.49,0.00022008,2]
[337311608,1725593468109,-595.04,0.00022008,2]
[337311609,1725593468120,-25483.24,0.00022008,2]
[337311610,1725593468132,-500.0,0.00022008,2]
[337311611,1725593468142,-500.0,0.00022008,2]
[337311612,1725593468154,-500.0,0.00022008,2]